Cogmind - Beta 14 @@@ ROGUE MODE // 2024.09.03 @ 16:53:51 Player: OctagonalPrism Result: Destroyed by YI-UF0 with YI-UF0's Doublenader Performance ------------- Evolutions (0) 0 Regions Visited (2) 400 Robots Destroyed (22) 110 Value Destroyed (499) 499 Prototype IDs (0) 0 Alien Tech Used (0) 0 Bonus (0) 0 TOTAL SCORE: 1009 Bonus ------- None Cogmind --------- Core Integrity 0/250 Matter 295/300 Energy 100/100 System Corruption 0% Temperature Cool (0) Movement Core (50) Location -10/Mines Parts ------- > --- POWER (1) -------- (None) > --- PROPULSION (2) --- (None) > --- UTILITY (2) ------ Structural Scanner > --- WEAPON (2) ------- (None) > --- INVENTORY (5) ---- Improved Ion Engine Weight Redist. System Hacking Suite Grenade Launcher Makeshift Sword Peak State ------------ > --- POWER ------------ Improved Ion Engine > --- PROPULSION ------- Light Treads > --- UTILITY ---------- Large Storage Unit Improved Terrain Scanner > --- WEAPON ----------- Assault Rifle Light Cannon > --- INVENTORY -------- Improved Ion Engine Weight Redist. System Structural Scanner ECM Suite Hacking Suite Makeshift Sword [Rating: 10] Favorites ----------- Power Improved Ion Engine Engine Improved Ion Engine Propulsion Light Treads Treads Light Treads Utility Improved Terrain Scanner Device Improved Terrain Scanner Storage Large Storage Unit Weapon Assault Rifle Energy Gun EM Pulse Gun Ballistic Gun Assault Rifle Ballistic Cannon Light Cannon Build | -11 -10 -10 ------- Run | Yrd Mat Min Slots Evolved . | . . . Power . | . . . Propulsion . | . . . Utility . | . . . Weapon . | . . . Parts Attached 13 | 7 5 1 Power 2 | 1 1 . Engine 2 | 1 1 . Core . | . . . Reactor . | . . . Propulsion 3 | 2 1 . Treads 3 | 2 1 . Leg . | . . . Wheel . | . . . Hover . | . . . Flight . | . . . Utility 4 | 2 1 1 Device 2 | 1 . 1 Storage 2 | 1 1 . Processor . | . . . Hackware . | . . . Protection . | . . . Artifact . | . . . Weapon 4 | 2 2 . Energy Gun 1 | 1 . . Energy Cannon . | . . . Ballistic Gun 2 | 1 1 . Ballistic Cannon 1 | . 1 . Launcher . | . . . Special Weapon . | . . . Impact Weapon . | . . . Slashing Weapon . | . . . Piercing Weapon . | . . . Special Melee Weapon . | . . . Unidentified Prototypes . | . . . Parts Lost 7 | . 2 5 Power 1 | . . 1 Propulsion 2 | . 1 1 Utility 1 | . . 1 Weapon 3 | . 1 2 Highest Loss Streak 5 | . 1 5 To Critical Strikes . | . . . Average Slot Usage (%) 89 | . 91 82 Engine 14 | . 14 14 Treads 18 | . 20 13 Device 13 | . 14 13 Storage 13 | . 14 13 Energy Gun 3 | . 3 . Ballistic Gun 13 | . 14 13 Ballistic Cannon 10 | . 10 13 Peak Build Rating 10 | 9 9 10 Average Rating 8 | 5 8 9 On Entrance 6 | . 9 9 Naked Turns . | . . . Heaviest Build 33 | 14 33 33 Greatest Support 40 | 40 40 20 Greatest Overweight (x) 8 | . 1 8 Average Overweight (x) . | . . 1 Largest Inventory Capacity 15 | 8 15 15 Average Capacity 13 | 7 14 14 Most Carried 7 | 1 5 7 Average Carried 3 | . 3 5 Final Capacity 15 | 8 15 5 Final Carried 5 | . 5 5 Class Distribution -------------------- 100% | Mutant Dominant Class ---------------- Mutant | -10/Materials Mutant | -10/Mines Resources | -11 -10 -10 ----------- Run | Yrd Mat Min Matter Collected 715 | 204 454 57 Remotely . | . . . Salvage Created 662 | 130 532 . Parts 41 | 5 36 . Haulers Intercepted 2 | . 2 . Recyclers Shooed 1 | 1 . . Parts Field Recycled . | . . . Retrieved Matter . | . . . Parts Self-Destructed . | . . . Prevented . | . . . Kills | -11 -10 -10 ------- Run | Yrd Mat Min Combat Hostiles Destroyed 10 | . 10 . Guns 3 | . 3 . Cannons 7 | . 7 . Classes Destroyed 8 | 2 6 . Worker 1 | . 1 . Builder 1 | . 1 . Tunneler 2 | 2 . . Hauler 2 | . 2 . Recycler 1 | 1 . . Operator 2 | . 2 . Watcher 3 | . 3 . Grunt 10 | . 10 . Best Kill Streak 3 | 2 3 . Combat Bots Only 2 | . 2 . Max Kills in Single Turn 1 | 1 1 . Gunslinging . | . . . Exploded . | . . . Melee . | . . . Uniques/NPCs Destroyed . | . . . Combat | -11 -10 -10 -------- Run | Yrd Mat Min Hostile Shots Fired 76 | . 58 18 Missed 17 | . 11 6 Damage Taken 1060 | . 618 442 Core 251 | . 111 140 Absorbed by Shields . | . . . Regen/Repaired (Parts) 118 | . 118 . Core Remaining (%) 100 | 100 . . Volleys Fired 97 | 16 79 2 Largest 2 | 2 2 1 Hottest 60 | 60 60 20 Shots Fired 159 | 21 136 2 Gun 120 | 21 97 2 Cannon 39 | . 39 . Launcher . | . . . Special . | . . . Kinetic 136 | 16 118 2 Thermal . | . . . Explosive . | . . . Electromagnetic 23 | 5 18 . Robot Hit Streak 11 | 6 11 5 Robot Miss Streak 5 | 1 5 . Penetration Max . | . . . Secondary Targets . | . . . Shots Hit Robots 106 | 16 88 2 Core Hits 36 | 6 30 . Critical Kills 2 | 1 1 . Critical Parts Destroyed . | . . . Critical Strikes 3 | 1 2 . Destroy 2 | 1 1 . Blast 1 | . 1 . Melee Attacks . | . . . Impact . | . . . Slashing . | . . . Piercing . | . . . Sneak Attacks . | . . . Combat Hostiles . | . . . Follow-up Attacks . | . . . Damage Inflicted 1464 | 145 1297 22 Guns 943 | 145 776 22 Cannons 521 | . 521 . Explosions . | . . . Melee . | . . . Ramming . | . . . Kinetic 1324 | 93 1209 22 Thermal . | . . . Explosive . | . . . Electromagnetic 140 | 52 88 . Impact . | . . . Slashing . | . . . Piercing . | . . . Highest Corruption . | . . . Average Corruption . | . . . Corruption Purged . | . . . Corruption Blocked . | . . . Overload Shots . | . . . Overflow Damage . | . . . Projectiles . | . . . Explosions . | . . . Melee . | . . . Knockbacks 6 | . 6 . Impact . | . . . Kinetic 6 | . 6 . Secondary . | . . . Self-Inflicted Damage . | . . . Shots . | . . . Rammed . | . . . Targets Rammed . | . . . Kicked . | . . . Crushed . | . . . Highest Temperature 40 | 40 33 . Average Temperature 15 | 17 15 . Received Heat Transfer 342 | . 342 . Siege Activations . | . . . Robots Corrupted . | . . . Combat Hostiles . | . . . Parts Fried . | . . . Impact Corruptions . | . . . Robots Melted . | . . . Combat Hostiles . | . . . Parts Melted . | . . . Heat Transferred . | . . . Parts Sabotaged . | . . . Parts Stolen . | . . . Parts Stripped . | . . . Power Chain Reactions . | . . . Alert | -11 -10 -10 ------- Run | Yrd Mat Min Peak Influence 211 | 15 211 43 Initial 43 | . 9 43 Average 92 | 5 114 41 Maximum Alert Level 1 | . 1 . Low Security (%) 95 | 100 94 100 Level 1 4 | . 5 . Level 2 . | . . . Level 3 . | . . . Level 4 . | . . . Level 5 . | . . . High Security . | . . . Max Security . | . . . Squads Dispatched 3 | . 3 . Investigation 2 | . 2 . Extermination . | . . . Reinforcement 1 | . 1 . Assault . | . . . Garrison . | . . . Intercept . | . . . Searches Triggered . | . . . Construction Impeded . | . . . Haulers Reinforced . | . . . Active Scanning Responses . | . . . Cargo Convoy Interrupts . | . . . Stealth | -11 -10 -10 --------- Run | Yrd Mat Min Distress Signals . | . . . Communications Jammed . | . . . Distress Signals . | . . . Times Spotted 24 | . 23 1 Peak Tracking Total 4 | . 4 1 Tactical Retreats 4 | . 4 . Traps | -11 -10 -10 ------- Run | Yrd Mat Min Traps Triggered . | . . . Indirectly . | . . . Trap Hack Attempts . | . . . Triggered . | . . . Disarmed 1 | . 1 . Reprogrammed . | . . . Reused . | . . . Traps Extracted . | . . . Installed . | . . . Triggered . | . . . Machines | -11 -10 -10 ---------- Run | Yrd Mat Min Machines Disabled 2 | . 2 . Max in Single Turn 1 | . 1 . Machines Repaired . | . . . Machines Dismantled . | . . . Machines Sabotaged . | . . . Overloaded Fab Kills . | . . . Hacking | -11 -10 -10 --------- Run | Yrd Mat Min Machines Accessed 7 | . 6 1 Terminals 5 | . 4 1 Fabricators . | . . . Repair Stations 1 | . 1 . Recycling Units 1 | . 1 . Scanalyzers . | . . . Garrison Access . | . . . Total Hacks 20 | . 18 2 Successful 9 | . 9 . Failed 11 | . 9 2 Catastrophic . | . . . Database Lockouts . | . . . Manual 11 | . 11 . Terminals 15 | . 13 2 Fabricators . | . . . Repair Stations 3 | . 3 . Recycling Units 2 | . 2 . Scanalyzers . | . . . Garrison Access . | . . . Terminal Hacks 2 | . 2 . Emergency Access Points 1 | . 1 . Disarm Traps 1 | . 1 . Fabricator Hacks . | . . . Repair Station Hacks 2 | . 2 . Scan Component 1 | . 1 . Repair 1 | . 1 . Recycling Unit Hacks . | . . . Scanalyzer . | . . . Garrison Access Hacks . | . . . Unauthorized Hacks 5 | . 5 . Terminals 4 | . 4 . Botnet 3 | . 3 . Operators 1 | . 1 . Fabricators . | . . . Repair Stations . | . . . Recycling Units 1 | . 1 . Tunnel 1 | . 1 . Scanalyzers . | . . . Garrison Access . | . . . Data Cores Recovered 1 | . 1 . Used . | . . . Hacking Detections 5 | . 4 1 Full Trace Events 2 | . 2 . Feedback Events . | . . . Feedback Blocked . | . . . Robot Schematics Acquired . | . . . Robots Built . | . . . Authchips . | . . . Time . | . . . Total Robot Build Rating . | . . . Part Schematics Acquired . | . . . Parts Built . | . . . Authchips . | . . . Time . | . . . Total Part Build Rating . | . . . Parts Repaired 1 | . 1 . Time 13 | . 13 . Parts Recycled . | . . . Recycled Matter . | . . . Retrieved Matter . | . . . Retrieved Components . | . . . Parts Scanalyzed . | . . . Part Schematics Acquired . | . . . Parts Damaged . | . . . Bothacking | -11 -10 -10 ------------ Run | Yrd Mat Min Used RIF Installer . | . . . Robots Hacked . | . . . Non-combat . | . . . Combat . | . . . Robot Hacks Applied . | . . . Relay Couplers Released . | . . . Fabnet Peak Effective % . | . . . Robots Rewired . | . . . Allies Hacked . | . . . Hacks Repelled . | . . . Allies | -11 -10 -10 -------- Run | Yrd Mat Min Total Allies . | . . . Largest Group . | . . . Highest-Rated Group . | . . . Highest-Rated Ally . | . . . Total Orders . | . . . Ally Attacks . | . . . Total Damage . | . . . Kills . | . . . Allies Corrupted . | . . . Allies Melted . | . . . Intel | -11 -10 -10 ------- Run | Yrd Mat Min Robot Analysis Total . | . . . Derelict Logs Recovered 1 | . . 1 Drone Launches . | . . . Drone Recoveries . | . . . Exploration | -11 -10 -10 ------------- Run | Yrd Mat Min Turns Passed 1965 | 131 1442 392 Spaces Moved 808 | 59 591 158 Core 12 | 6 . 6 Treads 796 | 53 591 152 Legs . | . . . Wheels . | . . . Hover . | . . . Flight . | . . . Fastest Speed 50 | 50 160 150 Average Speed 202 | 148 198 238 Slowest Speed 450 | 160 240 450 Overloaded Moves . | . . . Propulsion Burnouts . | . . . Robots Hopped . | . . . Cave-ins Triggered . | . . . Exploration Rate (%) 37 | 4 70 39 Regions Visited 2 Branch Regions 1 Pre-discovered Areas 1 | . 1 . Known Exits Taken . | . . . Unknown Exits Taken 2 | 1 1 . Scrap Searched 2 | . . 2 Spaces Dug . | . . . Terrain Destroyed . | . . . Melee . | . . . Projectile . | . . . AOE . | . . . Terrain Rammed . | . . . Walls Destroyed . | . . . Machines Disabled . | . . . Actions | -11 -10 -10 --------- Run | Yrd Mat Min Total 980 | 82 726 172 Wait 51 | . 43 8 Move 806 | 58 590 158 Hop . | . . . Pick Up 9 | 1 6 2 Fast Attach 8 | 6 1 1 Attach 2 | 1 1 . Detach . | . . . Swap 3 | . 3 . Drop 4 | . 3 1 Fire 97 | 16 79 2 Melee . | . . . Ram . | . . . Kick . | . . . Crush . | . . . Escape Stasis . | . . . Rewire . | . . . Trap . | . . . Miscellaneous . | . . . Route ------- -11/Scrapyard -10/Materials (discovered 2 exits: [*Mat] / *Min) -10/Mines (discovered 1 exit: [*Mat]) History --------- Turn | Location | Event 29 | -11/Scrapyard | Discovered new exit (range 16) 132 | -11/Scrapyard | Entered Materials 337 | -10/Materials | Build established: Mutant 361 | -10/Materials | Discovered new exit (range 9) 1017 | -10/Materials | Discovered new exit (range 15) 1450 | -10/Materials | Repaired Lgt. Treads 1574 | -10/Materials | Entered Mines 1724 | -10/Mines | A weapon hastily lodged in a ceiling crevice suddenly fell to the ground 1747 | -10/Mines | Discovered new exit (range 10) 1875 | -10/Mines | YI-UF0 nonchalantly dropped a Grenade Launcher on the ground 1946 | -10/Mines | Core integrity fell below 50% 1958 | -10/Mines | Core integrity fell below 20% 1966 | -10/Mines | Destroyed by YI-UF0 with YI-UF0's Doublenader Last Messages --------------- YI-UF0: "WHAAM!" Lgt. Cannon destroyed. Imp. Terrain Scanner destroyed. YI-UF0 mumbles something. Assault Rifle destroyed. U-05 Engineer lays Concrete. YI-UF0 mumbles something. The unstable cave ceiling collapses. Lgt. Treads destroyed. The unstable cave ceiling collapses. Dropped Lrg. Storage Unit. U-05 Engineer lays Concrete. U-05 Engineer destroyed. The unstable cave ceiling collapses. Acquired Structural Scanner. R-06 Scavenger destroyed. The unstable cave ceiling collapses. YI-UF0 mumbles something. YI-UF0: "WHAAM!" Imp. Ion Engine destroyed. Map ----- +----------------------------------------------------+ | ?????????????????????????????????????????#????? ?? | | ???????????????????????????????????????????#??? #? | | ????????????????????#?????????????????????????? # | | ??????????????????????????????????????????????? | | ?????????????????????????????????????????#????? | | ??????????????????????????????????????????????? | | ???????????????????????#?????????????????####?? | | ??????????????????###????????????????????# ?? # | | ?????????????????### ????????#??????????# #?? # | | ????????????????### ???#????????#?????# #??# # | | ??????????# ##### ????####??#????????# #??# # | | ?????????# ### ########????#?##??# %#??# # | | ????????? ##### ###???#??????# %#??# | | ???????? ## ###????#?#??# |#### # | | ???????? # ########?#?## # | | ????????? g ########??## ###### | | ????????? ## ###???# #?#?## | | ????????? [ ## ###?## ##???? | | ????????? # ##### ##??? | | ????????# ## #### ##?? | | ?????????????### # !! ## #?? | | ????????????#?#### # % ##? | | ?????????????????? ## ! #### | | ?????????????????? ## ##??? | | ???????????????????##### # ### ##???# | | ???????????????#???##### @ #############???? | | ????????????#?????????## ##????###??#?#??? | | ????????????????????## # ##?#???????????## | | ????????????????????## # # ####??????????#???# | | ????????????????? ############?????#?#??#?#?? | | ?????????????????? ##############????????????????# | | ?????????????????? ####????????#?????????????????? | | ????????????????????????????#???????#????????????? | | ???????????????????? ???????????##?????????????#?? | | ??????????????????????????????#???????#????????### | | ????????????????????? ???????????????????????????? | | ?????????????????????????????????????????????????? | | ?????????????????????????????????????????????????? | | ?????????????????????????????????????????????????? | | | | | | | | | | | | | | | | | | | | | | | +----------------------------------------------------+ Best States ------------- Heat Dissipation 25 Energy Generation 12 Energy Capacity 265 Matter Stores 300 Matter Capacity 300 Sight Range 16 Terrain Scan Range 16 Terrain Scan Density 10 Evasion (%) 40 Recoil Reduction 2 Item Schematics ----------------- None Robot Schematics ------------------ None Fabricated ------------ Nothing Alien Tech Used ----------------- None Achievements -------------- None Challenges ------------ None Game ------ Seed WarlordGodAirjet Manual? 0 Play Time 00:13:04 Cumulative 97.4 hours Start 2024.09.03 @ 16:43:10 End 2024.09.03 @ 16:53:51 Sessions 1 Manual Loads 0 Difficulty Rogue Special Mode None Game No. 90 Rogue 90 Adventurer 0 Explorer 0 Win Type - Total 0 Types 0/0/0/0/0/0/0/0/0 Lore% 36 Gallery% 50 Achievement% 38 Wizard Run 0 Options --------- Layout 2 ASCII 0 Keyboard 0 Movement Arrows Keybinds 0 Fullscreen 1 Font 16/Terminus Map View 55x47 Zoom Use 0% Tactical HUD 0 Map Filters NONE Filters NONE Steam 1 RUN: 584147ca-e890-463b-ac99-6656f08d743c